fUSD/lending_fUSD_20260408
["ID","MTS","AMOUNT","RATE_DAILY","PERIOD"]
[420030724,1775626259061,-1500.0,0.0002739,120]
[420030725,1775626259071,-1500.0,0.0002739,120]
[420030726,1775626259081,-1500.0,0.0002739,120]
[420030727,1775626259091,-1500.0,0.0002739,120]
[420030728,1775626259100,-1500.0,0.0002739,120]
[420030729,1775626259111,-1500.0,0.0002739,120]
[420030730,1775626259122,-1500.0,0.0002739,120]
[420030731,1775626259132,-1500.0,0.0002739,120]
[420030732,1775626259142,-1500.0,0.0002739,120]
[420030733,1775626259153,-1500.0,0.0002739,120]
[420030734,1775626259163,-1500.0,0.0002739,120]
[420030735,1775626259173,-1500.0,0.0002739,120]
[420030736,1775626259183,-1500.0,0.0002739,120]
[420030737,1775626259192,-1500.0,0.0002739,120]
[420030738,1775626259202,-1500.0,0.0002739,120]
[420030739,1775626259211,-1500.0,0.0002739,120]
[420030740,1775626259222,-1500.0,0.0002739,120]
[420030741,1775626259231,-1500.0,0.0002739,120]
[420030742,1775626259241,-1500.0,0.0002739,120]
[420030743,1775626259251,-1500.0,0.0002739,120]
[420030744,1775626259261,-1500.0,0.0002739,120]
[420030745,1775626259270,-1500.0,0.0002739,120]
[420030746,1775626259280,-1500.0,0.0002739,120]
[420030747,1775626259289,-1500.0,0.0002739,120]
[420030748,1775626259299,-1500.0,0.0002739,120]
[420030749,1775626259309,-1500.0,0.0002739,120]
[420030750,1775626259319,-1500.0,0.0002739,120]
[420030751,1775626259328,-1500.0,0.0002739,120]
[420030752,1775626259337,-1500.0,0.0002739,120]
[420030753,1775626259348,-1500.0,0.0002739,120]
[420030754,1775626259358,-861.432,0.0002739,120]
[420030755,1775626259368,-593.38,0.00027397,120]
[420030756,1775626259377,-975.4325624,0.00027397,5]
[420030757,1775626259387,-151.0,0.00027397,7]
[420030758,1775626259397,-1000.0,0.00027397,120]
[420030759,1775626259407,-916.91,0.00027397,120]
[420030760,1775626259417,-560.80847937,0.00027397,2]
[420030761,1775626259426,-383.03666175,0.00027397,7]
[420030762,1775626259435,-500.0,0.00027397,2]
[420030763,1775626259444,-500.0,0.00027397,2]
[420030764,1775626259454,-1000.0,0.00027397,4]
[420030765,1775626259463,-1000.0,0.00027397,4]
[420030766,1775626259473,-1069.72946307,0.00027397,4]
[420030767,1775626259482,-1000.0,0.00027397,20]
[420030768,1775626259492,-528.52,0.00027397,2]
[420030769,1775626259501,-300.0,0.00027397,2]
[420030770,1775626259511,-624.50920028,0.00027397,2]
[420030771,1775626259521,-399.423099,0.00027397,2]
[420030772,1775626259530,-399.423099,0.00027397,2]
[420030773,1775626259539,-399.423099,0.00027397,2]
[420030774,1775626259548,-399.423099,0.00027397,2]
[420030775,1775626259557,-222.664567,0.00027397,2]
[420030776,1775626259567,-222.664567,0.00027397,2]
[420030777,1775626259576,-222.664567,0.00027397,2]
[420030778,1775626259586,-222.664567,0.00027397,2]
[420030779,1775626259596,-14933.77,0.00027397,10]
[420030780,1775626259605,-500.0,0.00027397,5]
[420030781,1775626259615,-150.0,0.00027397,5]
[420030782,1775626259624,-500.0,0.00027399,120]
[420030783,1775626259633,-351.54269781,0.00027399,7]
[420030784,1775626259643,-2972657.62600353,0.000274,2]
[420030785,1775626259652,-1000.0,0.000274,120]
[420030786,1775626259662,-597.11866757,0.000274,2]
[420030787,1775626259672,-781.11785643,0.000274,2]
[420030788,1775626259682,-1000.0,0.000274,120]
[420030789,1775626259692,-152.135177,0.000274,7]
[420030790,1775626259702,-151.0,0.000274,7]
[420030791,1775626259712,-2110.0,0.000274,2]
[420030792,1775626259721,-151.0,0.000274,7]
[420030793,1775626259731,-151.0,0.000274,7]
[420030794,1775626259740,-151.0,0.000274,7]
[420030795,1775626259750,-151.0,0.000274,7]
[420030796,1775626259759,-151.0,0.000274,7]
[420030797,1775626259768,-152.681644,0.000274,7]
[420030798,1775626259778,-648.47292042,0.000274,2]
[420030799,1775626259787,-500.0,0.000274,30]
[420030800,1775626259797,-500.0,0.000274,30]
[420030801,1775626259806,-500.0,0.000274,30]
[420030802,1775626259816,-493.4709058,0.000274,30]
[420030803,1775626259825,-165.840251,0.000274,7]
[420030804,1775626259835,-151.0,0.000274,7]
[420030805,1775626259843,-151.0,0.000274,7]
[420030806,1775626259852,-151.0,0.000274,7]
[420030807,1775626259862,-157.356838,0.000274,7]
[420030808,1775626259870,-152.609839,0.000274,7]
[420030809,1775626259880,-151.0,0.000274,7]
[420030810,1775626259889,-151.0,0.000274,7]
[420030811,1775626259898,-151.0,0.000274,7]
[420030812,1775626259907,-151.0,0.000274,7]
[420030813,1775626259916,-192.931215,0.000274,7]
[420030814,1775626259925,-151.0,0.000274,7]
[420030815,1775626259934,-151.0,0.000274,7]
[420030816,1775626259943,-151.0,0.000274,7]
[420030817,1775626259952,-151.0,0.000274,7]
[420030818,1775626259961,-151.0,0.000274,7]
[420030819,1775626259970,-151.0,0.000274,7]
[420030820,1775626259979,-151.0,0.000274,7]
[420030821,1775626259989,-151.0,0.000274,7]
[420030822,1775626259998,-151.0,0.000274,7]
[420030823,1775626260008,-151.0,0.000274,7]
[420030824,1775626260018,-151.0,0.000274,7]
[420030825,1775626260027,-233.353905,0.000274,7]
[420030826,1775626260037,-151.0,0.000274,7]
[420030827,1775626260046,-151.0,0.000274,7]
[420030828,1775626260056,-160.07205,0.000274,7]
[420030829,1775626260065,-151.0,0.000274,7]
[420030830,1775626260075,-151.0,0.000274,7]
[420030831,1775626260085,-151.0,0.000274,7]
[420030832,1775626260094,-151.0,0.000274,7]
[420030833,1775626260104,-299.611539,0.000274,7]
[420030834,1775626260114,-152.727709,0.000274,7]
[420030835,1775626260123,-152.024533,0.000274,7]
[420030836,1775626260133,-151.0,0.000274,7]
[420030837,1775626260143,-151.0,0.000274,7]
[420030838,1775626260153,-235.253801,0.000274,7]
[420030839,1775626260162,-151.0,0.000274,7]
[420030840,1775626260172,-235.253801,0.000274,7]
[420030841,1775626260182,-151.0,0.000274,7]
[420030842,1775626260192,-235.253801,0.000274,7]
[420030843,1775626260202,-152.31661,0.000274,7]
[420030844,1775626260213,-235.253801,0.000274,7]
[420030845,1775626260223,-151.0,0.000274,7]
[420030846,1775626260234,-459.939466,0.000274,7]
[420030847,1775626260243,-459.939466,0.000274,7]
[420030848,1775626260256,-459.939466,0.000274,7]
[420030849,1775626260266,-459.939466,0.000274,7]
[420030850,1775626260276,-151.0,0.000274,7]
[420030851,1775626260287,-151.0,0.000274,7]
[420030852,1775626260296,-151.0,0.000274,7]
[420030853,1775626260306,-226.261666,0.000274,7]
[420030854,1775626260315,-151.0,0.000274,7]
[420030855,1775626260325,-151.0,0.000274,7]
[420030856,1775626260334,-151.0,0.000274,7]
[420030857,1775626260344,-226.261666,0.000274,7]
[420030858,1775626260354,-151.0,0.000274,7]
[420030859,1775626260365,-226.261666,0.000274,7]
[420030860,1775626260375,-151.0,0.000274,7]
[420030861,1775626260385,-226.261666,0.000274,7]
[420030862,1775626260396,-152.58185,0.000274,7]
[420030863,1775626260406,-206.48798596,0.000274,7]
[420030864,1775626260417,-151.0,0.000274,7]
[420030865,1775626260427,-151.0,0.000274,7]
[420030866,1775626260436,-151.0,0.000274,7]
[420030867,1775626260446,-181.438776,0.000274,7]
[420030868,1775626260456,-181.438776,0.000274,7]
[420030869,1775626260465,-151.0,0.000274,7]
[420030870,1775626260475,-181.438776,0.000274,7]
[420030871,1775626260486,-399.423099,0.000274,7]
[420030872,1775626260496,-181.438776,0.000274,7]
[420030873,1775626260506,-399.423099,0.000274,7]
[420030874,1775626260516,-151.0,0.000274,7]
[420030875,1775626260526,-151.0,0.000274,7]
[420030876,1775626260536,-399.423099,0.000274,7]
[420030877,1775626260546,-151.0,0.000274,7]
[420030878,1775626260555,-399.423099,0.000274,7]
[420030879,1775626260565,-574.00242,0.000274,7]
[420030880,1775626260575,-574.00242,0.000274,7]
[420030881,1775626260585,-421.391185,0.000274,7]
[420030882,1775626260595,-574.00242,0.000274,7]
[420030883,1775626260606,-931.295422,0.000274,7]
[420030884,1775626260617,-421.391185,0.000274,7]
[420030885,1775626260627,-931.295422,0.000274,7]
[420030886,1775626260636,-151.0,0.000274,7]
[420030887,1775626260646,-421.391185,0.000274,7]
[420030888,1775626260655,-931.295422,0.000274,7]
[420030889,1775626260666,-1436.269995,0.000274,7]
[420030890,1775626260676,-151.0,0.000274,7]
[420030891,1775626260686,-421.391185,0.000274,7]
[420030892,1775626260697,-931.295422,0.000274,7]
[420030893,1775626260707,-1436.269995,0.000274,7]
[420030894,1775626260717,-1436.269995,0.000274,7]
[420030895,1775626260727,-151.0,0.000274,7]
[420030896,1775626260738,-1436.269995,0.000274,7]
[420030897,1775626260747,-574.00242,0.000274,7]
[420030898,1775626260757,-151.0,0.000274,7]
[420030899,1775626260768,-153.180645,0.000274,7]
[420030900,1775626260777,-151.0,0.000274,7]
[420030901,1775626260787,-153.180645,0.000274,7]
[420030902,1775626260798,-153.180645,0.000274,7]
[420030903,1775626260808,-500.67081663,0.000274,2]
[420030904,1775626260818,-500.67081663,0.000274,2]
[420030905,1775626260827,-151.0,0.000274,7]
[420030906,1775626260837,-153.180645,0.000274,7]
[420030907,1775626260847,-151.0,0.000274,2]
[420030908,1775626260857,-293.388266,0.000274,7]
[420030909,1775626260868,-151.0,0.000274,7]
[420030910,1775626260877,-151.0,0.000274,7]
[420030911,1775626260887,-275.383851,0.000274,7]
[420030912,1775626260897,-151.0,0.000274,7]
[420030913,1775626260906,-275.383851,0.000274,7]
[420030914,1775626260916,-167.979442,0.000274,7]
[420030915,1775626260926,-275.383851,0.000274,7]
[420030916,1775626260936,-167.979442,0.000274,7]
[420030917,1775626260946,-275.383851,0.000274,7]
[420030918,1775626260955,-167.979442,0.000274,7]
[420030919,1775626260965,-167.979442,0.000274,7]
[420030920,1775626260975,-151.0,0.000274,7]
[420030921,1775626260985,-151.0,0.000274,7]
[420030922,1775626260995,-167.800278,0.000274,7]
[420030923,1775626261004,-591.919533,0.000274,7]
[420030924,1775626261014,-151.0,0.000274,7]
[420030925,1775626261023,-167.800278,0.000274,7]
[420030926,1775626261033,-591.919533,0.000274,7]
[420030927,1775626261042,-151.0,0.000274,7]
[420030928,1775626261052,-167.800278,0.000274,7]
[420030929,1775626261061,-591.919533,0.000274,7]
[420030930,1775626261070,-167.800278,0.000274,7]
[420030931,1775626261079,-591.919533,0.000274,7]
[420030932,1775626261089,-486.879159,0.000274,7]
[420030933,1775626261098,-486.879159,0.000274,7]
[420030934,1775626261108,-486.879159,0.000274,7]
[420030935,1775626261117,-486.879159,0.000274,7]
[420030936,1775626261127,-222.664567,0.000274,7]
[420030937,1775626261136,-151.0,0.000274,7]
[420030938,1775626261145,-222.664567,0.000274,7]
[420030939,1775626261155,-151.0,0.000274,7]
[420030940,1775626261165,-222.664567,0.000274,7]
[420030941,1775626261174,-189.331082,0.000274,7]
[420030942,1775626261184,-222.664567,0.000274,7]
[420030943,1775626261193,-1997.607165,0.000274,7]
[420030944,1775626261203,-1997.607165,0.000274,7]
[420030945,1775626261213,-1997.607165,0.000274,7]
[420030946,1775626261223,-1997.607165,0.000274,7]
[420030947,1775626261232,-157.639504,0.000274,7]
[420030948,1775626261241,-235.282447,0.000274,7]
[420030949,1775626261251,-157.639504,0.000274,7]
[420030950,1775626261261,-151.0,0.000274,7]
[420030951,1775626261271,-174.887897,0.000274,7]
[420030952,1775626261281,-157.639504,0.000274,7]
[420030953,1775626261290,-151.0,0.000274,7]
[420030954,1775626261300,-174.887897,0.000274,7]
[420030955,1775626261310,-157.639504,0.000274,7]
[420030956,1775626261319,-174.887897,0.000274,7]
[420030957,1775626261329,-174.887897,0.000274,7]
[420030958,1775626261547,-151.0,0.000274,7]
[420030959,1775626261562,-151.0,0.000274,7]
[420030960,1775626261572,-211.187641,0.000274,7]
[420030961,1775626261581,-200.428712,0.000274,7]
[420030962,1775626261591,-151.0,0.000274,7]
[420030963,1775626261600,-151.0,0.000274,7]
[420030964,1775626261611,-211.187641,0.000274,7]
[420030965,1775626261621,-200.428712,0.000274,7]
[420030966,1775626261631,-151.0,0.000274,7]
[420030967,1775626261641,-211.187641,0.000274,7]
[420030968,1775626261652,-200.428712,0.000274,7]
[420030969,1775626261662,-216.401494,0.000274,7]
[420030970,1775626261673,-151.0,0.000274,7]
[420030971,1775626261683,-211.187641,0.000274,7]
[420030972,1775626261693,-200.428712,0.000274,7]
[420030973,1775626261704,-216.401494,0.000274,7]
[420030974,1775626261714,-151.0,0.000274,7]
[420030975,1775626261724,-286.333865,0.000274,7]
[420030976,1775626261734,-216.401494,0.000274,7]
[420030977,1775626261746,-406.974794,0.000274,7]
[420030978,1775626261755,-688.562471,0.000274,7]
[420030979,1775626261766,-406.974794,0.000274,7]
[420030980,1775626261777,-216.401494,0.000274,7]
[420030981,1775626261788,-688.562471,0.000274,7]
[420030982,1775626261800,-406.974794,0.000274,7]
[420030983,1775626261812,-151.0,0.000274,7]
[420030984,1775626261822,-688.562471,0.000274,7]
[420030985,1775626261832,-406.974794,0.000274,7]
[420030986,1775626261842,-688.562471,0.000274,7]
[420030987,1775626261852,-151.0,0.000274,7]
[420030988,1775626261862,-151.0,0.000274,7]
[420030989,1775626261873,-151.0,0.000274,7]
[420030990,1775626261884,-269.03214,0.000274,7]
[420030991,1775626261894,-151.0,0.000274,7]
[420030992,1775626261904,-158.486598,0.000274,7]
[420030993,1775626261914,-151.0,0.000274,7]
[420030994,1775626261923,-158.486598,0.000274,7]
[420030995,1775626261933,-158.486598,0.000274,7]
[420030996,1775626261943,-158.486598,0.000274,7]
[420030997,1775626261953,-151.0,0.000274,7]
[420030998,1775626261963,-151.0,0.000274,7]
[420030999,1775626261973,-183.246062,0.000274,7]
[420031000,1775626261983,-470.727614,0.000274,7]
[420031001,1775626261993,-183.246062,0.000274,7]
[420031002,1775626262003,-470.727614,0.000274,7]
[420031003,1775626262013,-183.246062,0.000274,7]
[420031004,1775626262024,-470.727614,0.000274,7]
[420031005,1775626262033,-166.285857,0.000274,7]
[420031006,1775626262045,-151.0,0.000274,7]
[420031007,1775626262055,-183.246062,0.000274,7]
[420031008,1775626262065,-470.727614,0.000274,7]
[420031009,1775626262075,-166.285857,0.000274,7]
[420031010,1775626262085,-151.0,0.000274,7]
[420031011,1775626262095,-576.67248,0.000274,7]
[420031012,1775626262105,-166.285857,0.000274,7]
[420031013,1775626262115,-576.67248,0.000274,7]
[420031014,1775626262125,-166.285857,0.000274,7]
[420031015,1775626262134,-244.821422,0.000274,7]
[420031016,1775626262144,-576.67248,0.000274,7]
[420031017,1775626262154,-244.821422,0.000274,7]
[420031018,1775626262163,-151.0,0.000274,7]
[420031019,1775626262173,-576.67248,0.000274,7]
[420031020,1775626262183,-152.058502,0.000274,7]
[420031021,1775626262194,-151.0,0.000274,7]
[420031022,1775626262203,-151.0,0.000274,7]
[420031023,1775626262214,-244.821422,0.000274,7]
[420031024,1775626262223,-151.0,0.000274,7]
[420031025,1775626262233,-151.0,0.000274,7]
[420031026,1775626262243,-151.0,0.000274,7]
[420031027,1775626262254,-244.821422,0.000274,7]
[420031028,1775626262265,-151.0,0.000274,7]
[420031029,1775626262275,-151.0,0.000274,7]
[420031030,1775626262285,-151.0,0.000274,7]
[420031031,1775626262295,-511.805651,0.000274,7]
[420031032,1775626262307,-151.0,0.000274,7]
[420031033,1775626262318,-511.805651,0.000274,7]
[420031034,1775626262328,-151.206448,0.000274,7]
[420031035,1775626262337,-319.982796,0.000274,7]
[420031036,1775626262346,-159.072668,0.000274,7]
[420031037,1775626262356,-511.805651,0.000274,7]
[420031038,1775626262368,-319.982796,0.000274,7]
[420031039,1775626262378,-159.072668,0.000274,7]
[420031040,1775626262388,-151.0,0.000274,7]
[420031041,1775626262398,-151.0,0.000274,7]
[420031042,1775626262408,-511.805651,0.000274,7]
[420031043,1775626262419,-319.982796,0.000274,7]
[420031044,1775626262429,-151.0,0.000274,7]
[420031045,1775626262439,-1286.374842,0.000274,2]
[420031046,1775626262449,-159.072668,0.000274,7]
[420031047,1775626262459,-952.790729,0.000274,7]
[420031048,1775626262470,-361.197017,0.000274,7]
[420031049,1775626262480,-194.376713,0.000274,7]
[420031050,1775626262489,-151.0,0.000274,7]
[420031051,1775626262499,-319.982796,0.000274,7]
[420031052,1775626262509,-1286.374842,0.000274,2]
[420031053,1775626262517,-159.072668,0.000274,7]
[420031054,1775626262527,-952.790729,0.000274,7]
[420031055,1775626262537,-361.197017,0.000274,7]
[420031056,1775626262546,-151.0,0.000274,7]
[420031057,1775626262557,-1286.374842,0.000274,2]
[420031058,1775626262567,-361.197017,0.000274,7]
[420031059,1775626262577,-952.790729,0.000274,7]
[420031060,1775626262587,-1286.374842,0.000274,2]
[420031061,1775626262597,-151.0,0.000274,7]
[420031062,1775626262606,-361.197017,0.000274,7]
[420031063,1775626262616,-151.0,0.000274,7]
[420031064,1775626262626,-162.42237,0.000274,7]
[420031065,1775626262636,-151.0,0.000274,7]
[420031066,1775626262645,-698.076002,0.000274,7]
[420031067,1775626262655,-952.790729,0.000274,7]
[420031068,1775626262664,-698.076002,0.000274,7]
[420031069,1775626262675,-162.42237,0.000274,7]
[420031070,1775626262685,-151.0,0.000274,7]
[420031071,1775626262695,-698.076002,0.000274,7]
[420031072,1775626262705,-162.42237,0.000274,7]
[420031073,1775626262716,-151.0,0.000274,7]
[420031074,1775626262726,-698.076002,0.000274,7]
[420031075,1775626262736,-162.42237,0.000274,7]
[420031076,1775626262746,-151.0,0.000274,7]
[420031077,1775626262756,-151.0,0.000274,7]
[420031078,1775626262766,-319.18482677,0.000274,2]
[420031079,1775626262776,-151.0,0.000274,7]
[420031080,1775626262787,-315.297815,0.000274,7]
[420031081,1775626262797,-2000.0,0.000274,2]
[420031082,1775626262807,-2000.0,0.000274,2]
[420031083,1775626262820,-2000.0,0.000274,2]
[420031084,1775626262830,-315.297815,0.000274,7]
[420031085,1775626262839,-151.0,0.000274,7]
[420031086,1775626262850,-151.0,0.000274,7]
[420031087,1775626262860,-151.0,0.000274,7]
[420031088,1775626262871,-315.297815,0.000274,7]
[420031089,1775626262883,-262.423358,0.000274,7]
[420031090,1775626262893,-151.0,0.000274,7]
[420031091,1775626262904,-315.297815,0.000274,7]
[420031092,1775626262915,-262.423358,0.000274,7]
[420031093,1775626262924,-151.0,0.000274,7]
[420031094,1775626262935,-262.423358,0.000274,7]
[420031095,1775626262945,-151.0,0.000274,7]
[420031096,1775626262955,-262.423358,0.000274,7]
[420031097,1775626262965,-151.0,0.000274,7]
[420031098,1775626262975,-151.0,0.000274,7]
[420031099,1775626262985,-151.0,0.000274,7]
[420031100,1775626262996,-8350.49652639,0.000274,2]
[420031101,1775626263005,-151.0,0.000274,7]
[420031102,1775626263017,-151.0,0.000274,7]
[420031103,1775626263028,-1846.9143,0.000274,7]
[420031104,1775626263039,-151.0,0.000274,7]
[420031105,1775626263050,-1846.9143,0.000274,7]
[420031106,1775626263060,-151.0,0.000274,7]
[420031107,1775626263070,-187.069104,0.000274,7]
[420031108,1775626263081,-151.0,0.000274,7]
[420031109,1775626263091,-1846.9143,0.000274,7]
[420031110,1775626263102,-151.0,0.000274,7]
[420031111,1775626263113,-1846.9143,0.000274,7]
[420031112,1775626263123,-151.0,0.000274,7]
[420031113,1775626263133,-151.0,0.000274,7]
[420031114,1775626263143,-505.202975,0.000274,7]
[420031115,1775626263153,-151.912962,0.000274,7]
[420031116,1775626263163,-151.0,0.000274,7]
[420031117,1775626263174,-151.0,0.000274,7]
[420031118,1775626263185,-151.0,0.000274,7]
[420031119,1775626263195,-151.0,0.000274,7]
[420031120,1775626263205,-505.202975,0.000274,7]
[420031121,1775626263215,-151.0,0.000274,7]
[420031122,1775626263225,-151.0,0.000274,7]
[420031123,1775626263235,-151.0,0.000274,7]
[420031124,1775626263245,-151.0,0.000274,7]
[420031125,1775626263254,-168.08863515,0.000274,2]
[420031126,1775626263264,-165.0,0.00027408,120]
[420031127,1775626263274,-288.07095047,0.00027497,7]
[420031128,1775626263285,-292.3100366,0.000275,7]
[420031129,1775626263295,-202.95945031,0.000275,2]
[420031130,1775626263305,-554.35323106,0.000275,2]
[420031131,1775626263315,-250.0,0.000275,4]
[420031132,1775626263325,-112958.19139937,0.000275,2]
[420031133,1775626263504,-176.930232,0.00011421,2]
[420031134,1775626263516,-1003.43624438,0.000192,2]
[420031135,1775626263526,-151.0,0.000249,2]
[420031136,1775626263535,-151.0,0.000249,2]
[420031137,1775626263544,-122.63352362,0.00026686,120]
[420031138,1775626263556,-877.36647638,0.00026686,120]
[420031139,1775626263567,-1000.0,0.00026686,120]
[420031140,1775626263576,-1000.0,0.00026686,120]
[420031141,1775626263585,-223721.34565904,0.000275,2]
[420031142,1775626264114,-556.58305282,0.0001607,2]
[420031143,1775626264127,-300.0,0.0001607,2]
[420031144,1775626264141,-5165.41694718,0.0001607,2]
[420031145,1775626264152,-6022.0,0.0001907,2]
[420031146,1775626264161,-6022.0,0.0002207,2]
[420031147,1775626264170,-151.0,0.000249,2]
[420031148,1775626264180,-151.0,0.000249,2]
[420031149,1775626264191,-151.0,0.000249,2]
[420031150,1775626264201,-151.0,0.000249,2]
[420031151,1775626264211,-1000.0,0.00026686,120]
[420031152,1775626264221,-695.72037789,0.00026686,120]
[420031153,1775626264236,-304.27962211,0.00026686,120]
[420031154,1775626264246,-450.39702815,0.00026686,120]
[420031155,1775626264274,-151.0,0.000249,2]
[420031156,1775626264284,-549.60297185,0.00026686,120]
[420031157,1775626264294,-1000.0,0.00026686,120]
[420031158,1775626264304,-160.314518,0.00026686,120]
[420031159,1775626264476,-90.54233695,0.000249,2]
[420031160,1775626264488,-60.45766305,0.000249,2]
[420031161,1775626264499,-151.0,0.000249,2]
[420031162,1775626264510,-151.0,0.000249,2]
[420031163,1775626264520,-151.0,0.000249,2]
[420031164,1775626264530,-151.0,0.000249,2]
[420031165,1775626264540,-6022.0,0.0002507,2]
[420031166,1775626264551,-839.685482,0.00026686,120]
[420031167,1775626264561,-1000.0,0.00026686,120]
[420031168,1775626264572,-1000.0,0.00026686,120]
[420031169,1775626264582,-1550.92811273,0.00027397,10]
[420031170,1775626264612,-151.0,0.000249,2]
[420031171,1775626264623,-111.6,0.00026686,120]
[420031172,1775626264717,-888.4,0.00026686,120]
[420031173,1775626264727,-5661.97796962,0.00027397,10]
[420031174,1775626264740,-5231.90391765,0.00027397,10]
[420031175,1775626264750,-505.202975,0.000274,7]
[420031176,1775626264760,-505.202975,0.000274,7]
[420031177,1775626264769,-1003.43624438,0.000274,2]
[420031178,1775626264779,-646.28908697,0.000275,2]
[420031179,1775626264792,-1623.30494545,0.000275,2]
[420031180,1775626265708,-11200.88540321,0.000275,2]
[420031181,1775626323974,-300.0,0.00010698,2]
[420033148,1775626461186,395.45919567,0.00010613,2]
[420033680,1775626484507,4004.55080433,0.00010613,2]
[420033681,1775626484531,2582.38667713,0.00010613,2]
[420033840,1775626491636,2417.62332287,0.00010613,2]
[420033841,1775626491659,5000.01,0.00010613,2]
[420033843,1775626491683,3236.53498483,0.00010613,2]
[420033977,1775626497491,254.8827393,0.00010613,2]
[420034286,1775626517216,-1200.0,0.00010711,2]
[420034287,1775626517248,-300.0,0.00010711,2]
[420034288,1775626517279,-222.12753693,0.00010712,2]
[420034289,1775626517312,-216.76670793,0.00010712,2]
[420034290,1775626517344,-198.89217132,0.00010712,2]
[420034291,1775626517379,-500.0,0.00010712,2]
[420034292,1775626517413,-500.0,0.00010712,2]
[420034293,1775626517448,-500.0,0.00010712,2]
[420034294,1775626517483,-500.0,0.00010712,2]
[420034295,1775626517517,-210.46763047,0.00010712,2]
[420034296,1775626517548,-500.0,0.00010712,2]
[420034297,1775626517768,-303.5019067,0.00010712,2]
[420034298,1775626520548,-32.12073221,0.00010712,2]
[420034299,1775626520579,-1200.0,0.00010712,2]
[420034300,1775626520614,-1096.24048485,0.00010712,3]
[420034301,1775626520646,-306.0,0.00010712,2]
[420034302,1775626520675,-958.28926477,0.00010712,2]
[420034303,1775626520705,-250.0,0.00010712,2]
[420034304,1775626520826,-2314.70903634,0.00010713,2]
[420034305,1775626523433,-10000.01,0.00010713,2]
[420035114,1775626767571,150.0,0.00011233,120]
[420035239,1775626817169,430.019,0.00010685,2]
[420035479,1775626897090,169.9218262,0.00010613,2]
[420035488,1775626909191,2500.0,0.00010613,2]
[420035611,1775626975035,500.0,0.0001001,2]
[420035613,1775626990086,153.43410661,0.00010613,2]
[420035628,1775627066858,500.0,0.00010576,2]
[420035629,1775627067027,500.0,0.00010576,2]
[420035630,1775627067157,528.23575097,0.00010576,2]
[420035642,1775627106311,150.0,0.00010282,2]
[420035643,1775627106379,150.0,0.00010318,2]
[420035644,1775627106446,150.0,0.00010354,2]
[420035645,1775627106517,150.0,0.00010389,2]
[420035646,1775627106548,150.0,0.00010425,2]
[420035647,1775627106607,150.0,0.00010461,2]